bitfinex-derivatives/quotes_SOLF0:USTF0_20260226
["timestamp","ask_amount","ask_price","bid_price","bid_amount"]
[1772067425227,24.90737414,88.599,88.54,25.06409673]
[1772067425824,35.06427414,88.598,88.54,25.06409673]
[1772067426528,8.73835112,88.62,88.54,25.06409673]
[1772067426529,24.90737414,88.595,88.54,25.06409673]
[1772067426729,0.07164735,88.578,88.54,25.06409673]
[1772067432331,24.90737414,88.627,88.54,25.06409673]
[1772067432535,24.90737414,88.627,88.52,8.73835112]
[1772067432536,10.1551,88.614,88.551,25.06409673]
[1772067434035,10.1551,88.614,88.555,25.06409673]
[1772067434638,24.90737414,88.61,88.537,25.06409673]
[1772067435434,24.90737414,88.61,88.541,25.06409673]
[1772067436629,24.90737414,88.607,88.544,25.06409673]
[1772067437038,24.90737414,88.607,88.567,0.071464]
[1772067442136,24.90737414,88.607,88.539,10.1636]
[1772067442345,24.90737414,88.599,88.539,10.1636]
[1772067442544,24.90737414,88.597,88.527,25.06409673]
[1772067443440,24.90737414,88.595,88.527,25.06409673]
[1772067443637,24.90737414,88.595,88.471,27.65414919]
[1772067443638,8.73718939,88.58,88.512,25.06409673]
[1772067443839,24.90737414,88.572,88.512,25.06409673]
[1772067444347,24.90737414,88.562,88.512,25.06409673]
[1772067444746,24.90737414,88.562,88.496,25.06409673]
[1772067444747,10.1621,88.553,88.496,25.06409673]
[1772067444948,33.96,88.598,88.496,25.06409673]
[1772067444949,24.90737414,88.552,88.496,25.06409673]
[1772067445745,24.3893222,88.542,88.48,25.78750927]
[1772067447040,24.3893222,88.536,88.482,25.78750927]
[1772067447249,27.65673496,88.53,88.482,25.78750927]
[1772067447648,27.65673496,88.52,88.467,25.78750927]
[1772067448346,3.26741276,88.51,88.467,25.78750927]
[1772067449144,3.26741276,88.52,88.467,25.78750927]
[1772067449951,24.3893222,88.536,88.481,25.78750927]
[1772067451049,3.26741276,88.54,88.481,25.78750927]
[1772067451250,10.1624,88.55,88.501,25.78750927]
[1772067451446,3.26741276,88.56,88.501,25.78750927]
[1772067451754,27.65673496,88.57,88.511,25.78750927]
[1772067452148,27.65673496,88.57,88.512,25.82889225]
[1772067452753,27.65673496,88.57,88.51,3.26741276]
[1772067452754,10.1603,88.568,88.514,25.82889225]
[1772067453152,25.08536066,88.588,88.525,25.82889225]
[1772067453350,25.08536066,88.588,88.468,158.228]
[1772067453351,3.26741276,88.6,88.531,25.82889225]
[1772067453555,3.26741276,88.6,88.541,25.82889225]
[1772067454055,10.1568,88.599,88.541,25.82889225]
[1772067454257,3.26741276,88.6,88.541,25.82889225]
[1772067454556,3.26741276,88.6,88.551,25.82889225]
[1772067455456,25.08536066,88.604,88.551,25.82889225]
[1772067455857,10.1568,88.599,88.551,25.82889225]
[1772067456755,25.08536066,88.604,88.551,25.82889225]
[1772067456952,0.07169905,88.584,88.551,25.82889225]
[1772067459955,0.07169905,88.584,88.535,25.82889225]
[1772067460351,0.07169905,88.584,88.537,25.82889225]
[1772067460552,24.97452441,88.619,88.537,25.82889225]
[1772067461857,24.98227795,88.614,88.545,10.1629]
[1772067462053,24.98227795,88.614,88.546,25.82889225]
[1772067462960,10.1556,88.61,88.548,25.82889225]
[1772067463861,10.1556,88.61,88.549,10.1625]
[1772067464055,10.1556,88.61,88.55,25.82889225]
[1772067465456,10.1564,88.602,88.55,25.82889225]
[1772067466861,35.12420193,88.602,88.55,25.82889225]
[1772067467165,35.12420193,88.602,88.52,8.73799589]
[1772067467166,24.96780193,88.597,88.53,10.1647]
[1772067467357,24.96606115,88.584,88.53,10.1647]
[1772067467554,24.96606115,88.584,88.531,25.82889225]
[1772067468360,24.96606115,88.584,88.539,10.1635]
[1772067468561,10.1568,88.599,88.54,25.82889225]
[1772067468964,10.1568,88.599,88.543,25.82889225]
[1772067469760,10.1568,88.599,88.546,25.82889225]
[1772067470162,10.1568,88.599,88.562,0.07284675]
[1772067471962,10.157,88.597,88.562,0.07284675]
[1772067472555,10.157,88.597,88.546,25.82889225]
[1772067472764,25.03797923,88.598,88.546,25.82889225]
[1772067473367,25.03797923,88.598,88.549,25.82889225]
[1772067473961,10.1551,88.614,88.558,10.1614]
[1772067474165,25.03155734,88.613,88.559,25.82889225]
[1772067475368,8.95141723,88.622,88.562,25.82889225]
[1772067475569,25.02825573,88.627,88.562,25.82889225]
[1772067475771,24.81178179,88.626,88.562,25.82889225]
[1772067475971,24.81178179,88.625,88.562,25.82889225]
[1772067476865,10.1553,88.612,88.562,25.82889225]
[1772067477364,24.81178179,88.625,88.562,25.82889225]
[1772067477766,10.1536,88.627,88.572,25.4416176]
[1772067478760,10.1536,88.627,88.591,0.07175073]
[1772067481273,3.26081159,88.63,88.591,0.07175073]
[1772067483870,3.26081159,88.61,88.562,25.4416176]
[1772067484373,24.81178179,88.609,88.562,25.4416176]
[1772067485671,24.81178179,88.609,88.55,3.26081159]
[1772067485672,3.26081159,88.61,88.565,25.4416176]
[1772067485870,3.26081159,88.61,88.51,6.0]
[1772067485871,24.81178179,88.629,88.571,25.4416176]
[1772067486170,24.81178179,88.617,88.571,25.4416176]
[1772067486768,3.26081159,88.61,88.571,25.4416176]
[1772067488273,0.07142249,88.599,88.571,25.4416176]
[1772067495872,0.07142249,88.599,88.557,35.6031176]
[1772067496074,0.07142249,88.599,88.558,25.4416176]
[1772067497480,0.07142249,88.599,88.561,25.4416176]
[1772067498375,10.1569,88.598,88.561,25.4416176]
[1772067500081,0.07142249,88.599,88.561,25.4416176]
[1772067501984,0.07142249,88.599,88.57,35.6017176]
[1772067502185,0.07142249,88.599,88.571,25.4416176]
[1772067505081,0.07142249,88.599,88.563,10.1609]
[1772067506092,27.23867219,88.57,88.511,26.1676705]
[1772067506387,23.97736485,88.549,88.497,26.1676705]
[1772067506595,23.97736485,88.549,88.512,10.1666]
[1772067506794,3.26130734,88.56,88.512,10.1666]
[1772067507085,3.26130734,88.54,88.494,26.1676705]
[1772067508391,0.07172249,88.526,88.494,26.1676705]
[1772067510280,3.26130734,88.56,88.494,36.3363705]
[1772067510488,3.26130734,88.56,88.501,26.1676705]
[1772067511591,23.97736485,88.565,88.511,26.1676705]
[1772067511787,23.97736485,88.579,88.521,24.21084658]
[1772067512195,23.97736485,88.579,88.529,24.28395749]
[1772067513593,33.88,88.604,88.529,24.28395749]
[1772067513594,3.26130734,88.59,88.531,24.21084658]
[1772067514490,3.26130734,88.59,88.552,0.07291702]
[1772067514794,10.1581,88.587,88.552,0.07291702]
[1772067515392,10.45960456,88.634,88.552,0.07291702]
[1772067515393,3.26130734,88.57,88.552,0.00083034]
[1772067515992,3.26130734,88.57,88.534,24.21084658]
[1772067517399,24.11487985,88.579,88.534,24.21084658]
[1772067518294,24.11487985,88.579,88.535,10.164]
[1772067518494,24.11487985,88.592,88.536,24.21084658]
[1772067519190,24.11487985,88.59,88.536,24.21084658]
[1772067520287,24.11487985,88.59,88.537,10.1638]
[1772067520897,24.11487985,88.588,88.536,24.21084658]
[1772067521899,24.11487985,88.588,88.528,10.1648]
[1772067522097,23.90882719,88.585,88.522,24.21084658]
[1772067523299,33.88,88.612,88.524,24.21084658]
[1772067523502,23.88584982,88.611,88.526,24.21084658]
[1772067523802,10.1565,88.602,88.539,24.21084658]
[1772067524003,23.80503012,88.601,88.539,24.21084658]
[1772067524901,23.79405026,88.598,88.539,24.21084658]
[1772067525606,33.93921259,88.596,88.539,24.21084658]
[1772067528704,0.07208528,88.576,88.539,24.21084658]
[1772067529106,0.07208528,88.576,88.527,6.0]
[1772067529107,0.07208528,88.576,88.542,24.21084658]
[1772067535018,0.07208528,88.576,88.543,10.1631]
[1772067537014,0.07208528,88.576,88.543,34.09909925]
[1772067537215,0.07208528,88.576,88.544,23.93599925]
[1772067540023,3.2628412,88.6,88.546,23.93599925]
[1772067540619,36.84418953,88.6,88.546,23.93599925]
[1772067540926,23.42464833,88.599,88.546,23.93599925]
[1772067541122,23.42464833,88.599,88.55,23.93599925]
[1772067542421,10.1557,88.609,88.555,23.93599925]
[1772067543925,10.1557,88.609,88.557,23.93599925]
[1772067544125,33.17915671,88.609,88.557,23.93599925]
[1772067544326,22.97789944,88.608,88.557,23.93599925]
[1772067544529,33.13399944,88.605,88.557,23.93599925]
[1772067544727,22.97789944,88.589,88.55,6.0]
[1772067545023,22.97789944,88.589,88.547,34.09869925]
[1772067545324,44.33960456,88.635,88.572,24.0077234]
[1772067545325,22.9379801,88.633,88.572,24.0077234]
[1772067545533,22.9379801,88.629,88.572,24.0077234]
[1772067545926,22.9379801,88.629,88.572,23.93599925]
[1772067546727,26.35407054,88.64,88.573,23.93599925]
[1772067546927,26.35407054,88.64,88.581,23.93599925]
[1772067548028,10.1533,88.629,88.581,23.93599925]
[1772067549330,10.1538,88.625,88.581,23.93599925]
[1772067549530,32.56732171,88.625,88.581,23.93599925]
[1772067549825,25.67636291,88.62,88.581,23.93599925]
[1772067550025,32.57430898,88.618,88.581,23.93599925]
[1772067550424,3.2628412,88.62,88.581,23.93599925]
[1772067550631,3.2628412,88.63,88.581,23.93599925]
[1772067550826,25.64519839,88.63,88.581,23.93599925]
[1772067552034,32.52079449,88.629,88.581,23.93599925]
[1772067552233,22.32593704,88.628,88.581,23.93599925]
[1772067552733,10.1538,88.625,88.581,23.93599925]
[1772067552933,22.33067075,88.624,88.581,23.93599925]
[1772067553533,22.28948409,88.609,88.594,0.07112134]
[1772067553728,22.28948409,88.609,88.551,23.93599925]
[1772067554032,3.2628412,88.6,88.554,23.93599925]
[1772067554427,10.1558,88.608,88.554,23.93599925]
[1772067555936,10.1558,88.608,88.557,23.93599925]
[1772067556632,10.1566,88.601,88.557,23.93599925]
[1772067557226,10.1566,88.601,88.507,20.3346]
[1772067557227,25.21257887,88.66,88.591,23.93599925]
[1772067557426,20.2943,88.684,88.591,23.93599925]
[1772067557427,25.21257887,88.649,88.591,23.93599925]
[1772067559033,25.21257887,88.649,88.594,23.93599925]
[1772067560334,25.21257887,88.639,88.594,23.93599925]
[1772067560530,25.21257887,88.629,88.585,10.1583]
[1772067560736,25.21257887,88.629,88.581,23.93599925]
[1772067561445,25.21257887,88.629,88.582,23.93599925]
[1772067561635,10.1526,88.636,88.582,23.93599925]
[1772067561835,3.25997546,88.64,88.582,23.93599925]
[1772067562031,25.21257887,88.643,88.591,23.93599925]
[1772067562641,25.21257887,88.643,88.596,23.93599925]
[1772067563637,25.21257887,88.643,88.597,10.157]
[1772067564640,25.21257887,88.643,88.597,34.09299925]
[1772067564837,10.1503,88.656,88.603,23.93599925]
[1772067565038,3.25997546,88.65,88.603,23.93599925]
[1772067565443,28.47255433,88.65,88.603,23.93599925]
[1772067565740,34.64478101,88.648,88.603,23.93599925]
[1772067566239,24.49368101,88.647,88.603,23.93599925]
[1772067567043,0.07115763,88.634,88.603,23.93599925]
[1772067572551,23.96461847,88.629,88.587,24.30618928]
[1772067572952,23.96461847,88.629,88.571,24.30618928]
[1772067572953,10.1543,88.621,88.571,24.30618928]
[1772067573951,10.1543,88.621,88.572,24.30618928]
[1772067574353,10.1552,88.613,88.572,24.30618928]
[1772067574552,27.22459393,88.62,88.573,24.30618928]
[1772067574753,23.96461847,88.62,88.573,24.30618928]
[1772067575747,10.1534,88.628,88.581,24.30618928]
[1772067576353,10.1545,88.619,88.581,24.30618928]
[1772067576553,23.96461847,88.635,88.581,24.30618928]
[1772067577455,3.25997546,88.63,88.581,24.30618928]
[1772067577857,3.25997546,88.63,88.584,24.30618928]
[1772067578344,23.96461847,88.629,88.584,24.30618928]
[1772067578956,23.96461847,88.629,88.585,10.1583]
[1772067580357,23.96461847,88.629,88.585,34.46448928]
[1772067580556,23.96461847,88.629,88.587,10.158]
[1772067582059,23.96461847,88.629,88.589,10.1579]
[1772067582265,23.96461847,88.619,88.561,24.30618928]
[1772067582662,23.96461847,88.599,88.548,24.30618928]
[1772067582962,23.96461847,88.599,88.559,10.1613]
[1772067583361,23.96461847,88.599,88.548,24.30618928]
[1772067584266,23.96461847,88.616,88.566,24.30618928]
[1772067584866,23.96461847,88.616,88.575,10.1595]
[1772067585266,23.96461847,88.616,88.575,34.46568928]
[1772067585566,10.1534,88.629,88.58,24.30618928]
[1772067585767,23.96461847,88.628,88.58,24.30618928]
[1772067587263,33.08974475,88.628,88.58,24.30618928]
[1772067587668,33.08974475,88.628,88.581,10.1588]
[1772067588266,9.12512628,88.627,88.581,10.1588]
[1772067588767,33.08974475,88.627,88.582,24.30618928]
[1772067589068,23.96461847,88.627,88.582,24.30618928]
[1772067589672,23.96461847,88.627,88.583,34.46468928]
[1772067590371,9.13498929,88.626,88.583,34.46468928]
[1772067590564,23.96461847,88.627,88.583,34.46468928]
[1772067590768,9.13499159,88.626,88.583,34.46468928]
[1772067590970,23.96461847,88.627,88.583,34.46468928]
[1772067591172,23.96461847,88.625,88.583,34.46468928]
[1772067591373,23.96461847,88.625,88.583,24.30618928]
[1772067591573,23.96461847,88.619,88.567,24.30618928]
[1772067591770,27.22459393,88.61,88.567,24.30618928]
[1772067592272,27.22459393,88.61,88.56,10.1612]
[1772067592873,34.12031847,88.608,88.56,10.1612]
[1772067593068,34.12031847,88.608,88.55,3.25997546]
[1772067593069,10.1557,88.608,88.565,24.30618928]
[1772067593274,23.96461847,88.623,88.571,24.30618928]
[1772067593862,23.96461847,88.639,88.571,24.30618928]
[1772067594069,33.10128823,88.638,88.581,24.30618928]
[1772067594268,23.96461847,88.636,88.581,24.30618928]
[1772067594469,33.10128823,88.635,88.581,24.30618928]
[1772067594674,9.13666976,88.634,88.581,24.30618928]
[1772067594874,10.1541,88.622,88.581,24.30618928]
[1772067595577,10.1534,88.629,88.585,24.30618928]
[1772067597682,9.09049678,88.634,88.589,34.13954619]
[1772067597876,9.09049678,88.633,88.589,23.98174619]
[1772067598077,9.09049678,88.632,88.589,23.98174619]
[1772067598277,23.96461847,88.635,88.589,23.98174619]
[1772067598479,34.12080674,88.634,88.589,23.98174619]
[1772067598782,9.09073305,88.633,88.589,23.98174619]
[1772067598983,25.03007369,88.629,88.582,10.1587]
[1772067599285,25.03007369,88.619,88.562,23.98174619]
[1772067599481,25.03007369,88.619,88.521,33.88]
[1772067599482,25.03007369,88.599,88.548,23.98174619]
[1772067599781,3.25997546,88.59,88.548,23.98174619]
[1772067599987,25.03007369,88.599,88.551,23.98174619]
[1772067600183,9.09073305,88.609,88.557,23.98174619]
[1772067600377,13.99481941,88.644,88.496,158.1781]
[1772067600378,25.03007369,88.628,88.571,23.98174619]
[1772067600584,9.0909791,88.627,88.571,23.98174619]
[1772067600782,25.03007369,88.628,88.571,23.98174619]
[1772067600783,9.0909791,88.626,88.571,23.98174619]
[1772067600978,25.03007369,88.628,88.571,23.98174619]
[1772067601186,9.09517269,88.627,88.571,23.98174619]
[1772067601484,9.09517269,88.626,88.571,23.98174619]
[1772067601686,25.03007369,88.624,88.571,23.98174619]
[1772067601886,25.03007369,88.609,88.558,23.98174619]
[1772067602486,25.03007369,88.604,88.558,23.98174619]
[1772067602685,25.03007369,88.604,88.55,3.26070626]
[1772067602686,25.03007369,88.599,88.544,23.98174619]
[1772067603083,25.03007369,88.599,88.498,20.3367]
[1772067603084,10.1596,88.574,88.528,23.98174619]
[1772067603286,3.26070626,88.6,88.541,23.98174619]
[1772067603483,25.03007369,88.609,88.551,23.98174619]
[1772067603685,9.09252969,88.608,88.551,23.98174619]
[1772067603992,9.09252969,88.607,88.551,23.98174619]
[1772067604184,9.09252969,88.606,88.551,23.98174619]
[1772067604383,25.03007369,88.599,88.535,23.98174619]
[1772067604686,25.03007369,88.589,88.535,23.98174619]
[1772067604992,10.1586,88.583,88.537,23.98174619]
[1772067605181,3.26070626,88.6,88.54,3.26070626]
[1772067605387,9.08792522,88.606,88.551,23.98174619]
[1772067605685,9.08792522,88.605,88.551,23.98174619]
[1772067605891,10.1567,88.6,88.551,23.98174619]
[1772067606291,10.1567,88.6,88.498,20.3367]
[1772067606292,3.26070626,88.62,88.564,23.98174619]
[1772067606492,9.09237453,88.619,88.564,23.98174619]
[1772067606693,9.09237453,88.618,88.571,23.98174619]
[1772067606888,10.1545,88.62,88.572,23.98174619]
[1772067607084,9.09237453,88.619,88.572,23.98174619]
[1772067607291,9.09237453,88.618,88.572,23.98174619]
[1772067607593,9.09237453,88.619,88.572,23.98174619]
[1772067607888,9.09237453,88.618,88.572,23.98174619]
[1772067608093,10.1524,88.637,88.589,34.13954619]
[1772067608094,3.26070626,88.63,88.589,34.13954619]
[1772067608486,9.09237453,88.634,88.589,34.13954619]
[1772067608690,3.26070626,88.64,88.596,10.157]
[1772067608891,9.09094599,88.639,88.589,23.98174619]
[1772067609088,9.09094599,88.638,88.589,23.98174619]
[1772067609387,9.09094599,88.637,88.59,10.1577]
[1772067609695,11.87196041,88.64,88.59,10.1577]
[1772067609696,9.09094599,88.636,88.59,10.1577]
[1772067609893,9.09094599,88.635,88.59,10.1577]
[1772067610193,9.09094599,88.634,88.59,10.1577]
[1772067610389,25.03007369,88.619,88.569,23.98174619]
[1772067611391,3.26070626,88.62,88.569,23.98174619]
[1772067611587,9.09094599,88.632,88.59,3.26070626]
[1772067611793,25.03007369,88.648,88.59,23.98174619]
[1772067611988,25.03007369,88.646,88.59,23.98174619]
[1772067612193,42.73716806,88.645,88.59,23.98174619]
[1772067612394,3.26070626,88.64,88.59,23.98174619]
[1772067612592,9.09336424,88.639,88.59,23.98174619]
[1772067612789,9.09336424,88.638,88.59,23.98174619]
[1772067612991,9.09336424,88.637,88.59,23.98174619]
[1772067613190,9.09336424,88.636,88.59,23.98174619]
[1772067613396,9.09336424,88.635,88.59,23.98174619]
[1772067613696,9.09336424,88.634,88.59,23.98174619]
[1772067613891,9.09336424,88.633,88.59,23.98174619]
[1772067614093,9.09336424,88.632,88.59,23.98174619]
[1772067614297,9.09336424,88.631,88.59,23.98174619]
[1772067614499,28.29077995,88.64,88.59,23.98174619]
[1772067614699,9.09792929,88.639,88.59,23.98174619]
[1772067614890,9.09792929,88.638,88.59,23.98174619]
[1772067615095,9.09792929,88.637,88.59,23.98174619]
[1772067615297,9.09792929,88.636,88.59,23.98174619]
[1772067615595,9.09792929,88.635,88.59,23.98174619]
[1772067615898,9.09792929,88.634,88.59,23.98174619]
[1772067616093,9.09792929,88.633,88.59,23.98174619]
[1772067616298,9.09792929,88.632,88.59,23.98174619]
[1772067616497,9.09792929,88.631,88.59,23.98174619]
[1772067616797,9.09792929,88.63,88.59,23.98174619]
[1772067616993,10.1524,88.637,88.59,23.98174619]
[1772067617200,25.03007369,88.629,88.579,10.159]
[1772067617398,25.03007369,88.627,88.579,10.159]
[1772067617600,25.03007369,88.627,88.58,23.98174619]
[1772067618101,25.03007369,88.627,88.51,34.43217247]
[1772067618102,25.03007369,88.619,88.562,23.98174619]
[1772067619888,35.18497369,88.616,88.565,10.1606]
[1772067620296,25.03007369,88.615,88.565,10.1606]
[1772067621300,25.03007369,88.615,88.565,34.14234619]
[1772067621898,10.1556,88.61,88.565,34.14234619]
[1772067622198,10.1556,88.61,88.566,23.98174619]
[1772067622699,25.03007369,88.615,88.566,23.98174619]
[1772067622901,25.03007369,88.615,88.569,10.1601]
[1772067623799,25.03007369,88.615,88.57,23.98174619]
[1772067624102,28.29080355,88.63,88.573,23.98174619]
[1772067624396,25.03007369,88.628,88.573,23.98174619]
[1772067624591,9.09493563,88.627,88.573,23.98174619]
[1772067624796,9.09493563,88.626,88.573,23.98174619]
[1772067624993,9.09493563,88.625,88.581,10.1587]
[1772067625197,25.03007369,88.628,88.581,10.1587]
[1772067625198,9.09493563,88.624,88.581,10.1587]
[1772067625394,9.09493563,88.623,88.581,10.1587]
[1772067625598,25.03007369,88.628,88.581,34.14044619]
[1772067625797,9.09458046,88.627,88.581,34.14044619]
[1772067625997,9.09458046,88.626,88.581,34.14044619]
[1772067626200,9.09458046,88.625,88.581,34.14044619]
[1772067626402,9.09458046,88.624,88.588,10.158]
[1772067626591,9.09458046,88.623,88.588,10.158]
[1772067626798,22.92202309,88.627,88.588,10.158]
[1772067626997,9.07932902,88.626,88.588,10.158]
[1772067627296,9.07932902,88.625,88.588,10.158]
[1772067627603,22.92202309,88.627,88.588,33.18906821]
[1772067627799,11.92477841,88.64,88.597,23.03106821]
[1772067628000,9.08035991,88.639,88.597,23.03106821]
[1772067628201,9.08035991,88.638,88.597,23.03106821]
[1772067628397,22.92202309,88.644,88.597,23.03106821]
[1772067628597,9.08096885,88.643,88.597,23.03106821]
[1772067628797,9.08096885,88.642,88.597,23.03106821]
[1772067628994,22.92202309,88.644,88.584,23.03106821]
[1772067629299,22.92202309,88.629,88.584,23.03106821]
[1772067629500,22.92202309,88.627,88.584,23.03106821]
[1772067629902,22.92202309,88.609,88.563,23.03106821]
[1772067630397,22.92202309,88.609,88.495,34.43217247]
[1772067630398,26.18275295,88.6,88.541,23.03106821]
[1772067630599,22.92202309,88.589,88.541,23.03106821]
[1772067631401,22.92202309,88.589,88.542,10.1632]
[1772067632198,13.99481941,88.638,88.496,20.3372]
[1772067632199,23.50561446,88.579,88.525,22.92903098]
[1772067632901,3.26072986,88.57,88.525,22.92903098]
[1772067633802,10.1603,88.569,88.525,22.92903098]
[1772067635501,23.50561446,88.577,88.525,22.92903098]
[1772067636104,10.158,88.589,88.531,22.92903098]
[1772067636399,3.26072986,88.6,88.541,22.92903098]
[1772067636696,23.50561446,88.598,88.541,22.92903098]
[1772067636896,3.26072986,88.59,88.541,22.92903098]
[1772067637297,26.76634432,88.59,88.541,22.92903098]
[1772067637692,26.76634432,88.59,88.498,6.0]
[1772067637693,26.76634432,88.59,88.543,22.92903098]
[1772067638096,23.50561446,88.59,88.543,22.92903098]
[1772067638704,23.50561446,88.59,88.547,22.92903098]
[1772067639108,23.50561446,88.59,88.551,10.1622]
[1772067640200,26.76634432,88.62,88.561,22.92903098]
[1772067641409,26.76634432,88.62,88.571,10.1599]
[1772067642510,23.50561446,88.599,88.562,10.1609]
[1772067646198,26.76634432,88.61,88.57,10.16]
[1772067648910,23.50561446,88.61,88.57,10.16]
[1772067650111,23.50561446,88.624,88.577,10.1592]
[1772067651207,3.26072986,88.61,88.558,10.1614]
[1772067651409,23.50561446,88.609,88.559,22.92903098]
[1772067651614,23.50561446,88.63,88.561,22.92903098]
[1772067651804,26.76634432,88.63,88.571,22.92903098]
[1772067653406,26.76634432,88.62,88.571,22.92903098]
[1772067654608,23.50561446,88.611,88.556,22.92903098]
[1772067654810,23.50561446,88.609,88.556,22.92903098]
[1772067655208,23.50561446,88.609,88.54,9.26072986]
[1772067655209,23.50561446,88.598,88.549,10.1624]
[1772067656711,23.50561446,88.598,88.553,22.71643958]
[1772067657905,23.50561446,88.598,88.555,10.1618]
[1772067658311,10.1562,88.604,88.556,22.71643958]
[1772067659007,10.1562,88.604,88.55,3.26072986]
[1772067659008,10.1562,88.604,88.561,22.71643958]
[1772067659413,23.2862457,88.598,88.519,22.71643958]
[1772067659608,23.2862457,88.569,88.51,3.26072986]
[1772067659807,26.54697556,88.55,88.506,22.71643958]
[1772067660308,3.26072986,88.56,88.506,22.71643958]
[1772067660515,23.2862457,88.569,88.461,303.94065626]
[1772067660516,23.2862457,88.569,88.511,22.71643958]
[1772067661711,23.2862457,88.566,88.514,10.1665]
[1772067662110,3.26072986,88.56,88.511,22.71643958]
[1772067663017,26.54697556,88.56,88.511,22.71643958]
[1772067663318,26.54697556,88.56,88.513,10.1666]
[1772067664520,23.2862457,88.558,88.511,22.71643958]
[1772067664813,23.2862457,88.558,88.5,25.97716944]
[1772067666018,23.2862457,88.558,88.512,10.1667]
[1772067668017,3.26072986,88.57,88.513,22.71643958]
[1772067668214,23.2862457,88.581,88.534,10.1642]
[1772067668717,23.2862457,88.581,88.521,22.71643958]
[1772067669018,23.2862457,88.579,88.526,10.1651]
[1772067669217,23.2862457,88.579,88.526,32.88153958]
[1772067669919,23.2862457,88.577,88.526,32.88153958]
[1772067672419,10.1592,88.578,88.526,32.88153958]
[1772067672420,23.2862457,88.569,88.526,32.88153958]
[1772067672616,13.99481941,88.626,88.502,6.0]
[1772067672617,23.2862457,88.559,88.502,6.0]
[1772067672817,23.2862457,88.559,88.501,6.0]
[1772067673215,23.2862457,88.559,88.502,22.71643958]
[1772067673914,23.2862457,88.559,88.509,10.1671]
[1772067674414,23.2862457,88.574,88.51,25.97716944]
[1772067674614,23.2862457,88.572,88.523,10.1654]
[1772067674820,23.2862457,88.569,88.51,25.97716944]
[1772067675511,33.4465457,88.569,88.51,25.97716944]
[1772067675717,33.4465457,88.569,88.522,32.88193958]
[1772067676421,33.4465457,88.569,88.526,22.71643958]
[1772067679518,33.4465457,88.569,88.529,10.1648]
[1772067679817,23.2862457,88.569,88.529,10.1648]
[1772067685429,26.55011273,88.58,88.526,22.71643958]
[1772067686222,23.2862457,88.58,88.531,22.99211741]
[1772067687022,23.2862457,88.58,88.541,10.1633]
[1772067690030,26.0385254,88.61,88.541,22.99211741]
[1772067690231,22.77465837,88.599,88.541,22.99211741]
[1772067690826,22.77465837,88.599,88.546,10.1628]
[1772067691227,10.46954902,88.633,88.517,6.0]
[1772067691228,22.77465837,88.589,88.531,22.99211741]
[1772067692231,23.10634143,88.585,88.536,10.1639]
[1772067692723,23.10634143,88.585,88.536,34.0924272]
[1772067692928,23.10634143,88.585,88.537,23.9285272]
[1772067693927,23.10634143,88.585,88.54,23.9285272]
[1772067694932,23.10634143,88.585,88.542,10.1632]
[1772067698937,23.10634143,88.585,88.55,10.1623]
[1772067701345,23.10634143,88.585,88.54,23.9285272]
[1772067701539,23.10634143,88.569,88.515,23.9285272]
[1772067702141,23.10634143,88.559,88.511,10.1668]
[1772067703044,23.10634143,88.549,88.502,10.1678]
[1772067703241,23.10634143,88.549,88.49,3.26386703]
[1772067703446,23.10634143,88.539,88.483,23.9285272]
[1772067704236,23.10634143,88.539,88.491,10.1691]
[1772067704639,23.10634143,88.552,88.501,23.9285272]
[1772067705147,23.10634143,88.549,88.501,23.9285272]
[1772067706944,23.10634143,88.545,88.491,23.9285272]
[1772067707151,23.10634143,88.569,88.52,27.19239423]
[1772067708450,23.10634143,88.569,88.523,23.9285272]
[1772067708645,23.10634143,88.569,88.473,23.9285272]
[1772067708850,23.10634143,88.558,88.509,23.9285272]
[1772067709046,23.10634143,88.558,88.5,3.26386703]
[1772067709047,23.10634143,88.558,88.501,6.0]
[1772067709251,23.10634143,88.549,88.501,6.0]
[1772067709648,23.10634143,88.549,88.494,23.9285272]
[1772067710152,33.26904143,88.548,88.5,3.26386703]
[1772067710451,23.10634143,88.547,88.5,3.26386703]
[1772067711147,23.10634143,88.545,88.5,3.26386703]
[1772067711346,26.37020846,88.58,88.521,23.9285272]
[1772067711551,23.10634143,88.58,88.53,3.26386703]
[1772067711749,8.96198998,88.589,88.543,23.9285272]
[1772067711952,23.10634143,88.596,88.543,23.9285272]
[1772067712145,23.10634143,88.579,88.52,3.26386703]
[1772067712352,10.1608,88.564,88.52,3.26386703]
[1772067712550,10.1608,88.564,88.517,10.1661]
[1772067712752,33.26714143,88.564,88.517,10.1661]
[1772067712949,23.10634143,88.555,88.506,10.1674]
[1772067714051,23.10634143,88.552,88.51,10.1669]
[1772067714244,23.10634143,88.579,88.521,23.9285272]
[1772067714451,10.1592,88.578,88.53,3.26386703]
[1772067714952,23.10634143,88.577,88.521,23.9285272]
[1772067715346,23.10634143,88.569,88.521,23.9285272]
[1772067715554,23.10634143,88.569,88.511,10.1669]
[1772067715753,24.3393291,88.559,88.511,10.1669]